[Event "Titled Tuesday Blitz January 10 Early 2023"]
[White "Kovacsy, Barnabas"]
[Black "Martinez Ramirez, Lennis"]
[WhiteFideId "769290"]
[BlackFideId "3509079"]
[WhiteElo "2245"]
[BlackElo "2426"]
[Result "1-0"]
[Round "01"]
[TimeControl "180+2"]
[Date "2023.01.10"]
[WhiteClock "0:00:15"]
[BlackClock "0:00:16"]

1. e4 {[%clk 0:02:57]}  c5 {[%clk 0:02:39]} 2. Nf3 {[%clk 0:02:56]}  d6 {[%clk 0:02:28]} 3. d4 {[%clk 0:02:55]}  cxd4 {[%clk 0:02:25]} 4. Nxd4 {[%clk 0:02:38]}  Nf6 {[%clk 0:02:24]} 5. f3 {[%clk 0:02:37]}  Nc6 {[%clk 0:02:21]} 6. c4 {[%clk 0:02:35]}  g6 {[%clk 0:02:19]} 7. Nc3 {[%clk 0:02:35]}  Bg7 {[%clk 0:02:08]} 8. Be3 {[%clk 0:02:34]}  O-O {[%clk 0:01:43]} 9. Be2 {[%clk 0:02:32]}  a5 {[%clk 0:01:39]} 10. O-O {[%clk 0:02:23]}  Nd7 {[%clk 0:01:39]} 11. Qd2 {[%clk 0:02:10]}  Nc5 {[%clk 0:01:39]} 12. b3 {[%clk 0:02:07]}  Bd7 {[%clk 0:01:23]} 13. Rab1 {[%clk 0:02:03]}  f5 {[%clk 0:00:57]} 14. Nxc6 {[%clk 0:01:53]}  Bxc6 {[%clk 0:00:46]} 15. exf5 {[%clk 0:01:52]}  gxf5 {[%clk 0:00:42]} 16. a3 {[%clk 0:01:49]}  f4 {[%clk 0:00:39]} 17. Bf2 {[%clk 0:01:41]}  a4 {[%clk 0:00:35]} 18. b4 {[%clk 0:01:29]}  Nb3 {[%clk 0:00:31]} 19. Qd3 {[%clk 0:01:29]}  Bd7 {[%clk 0:00:15]} 20. Bd1 {[%clk 0:01:19]}  Bf5 {[%clk 0:00:15]} 21. Ne4 {[%clk 0:01:19]}  Kh8 {[%clk 0:00:12]} 22. Bxb3 {[%clk 0:01:16]}  axb3 {[%clk 0:00:13]} 23. Rxb3 {[%clk 0:01:16]}  e6 {[%clk 0:00:12]} 24. Qxd6 {[%clk 0:01:04]}  Bxe4 {[%clk 0:00:12]} 25. Qxd8 {[%clk 0:01:04]}  Rfxd8 {[%clk 0:00:13]} 26. fxe4 {[%clk 0:01:04]}  Rd2 {[%clk 0:00:13]} 27. c5 {[%clk 0:00:58]}  Rg8 {[%clk 0:00:12]} 28. Rf3 {[%clk 0:00:50]}  e5 {[%clk 0:00:12]} 29. b5 {[%clk 0:00:44]}  Rc8 {[%clk 0:00:11]} 30. Rc3 {[%clk 0:00:41]}  Bf8 {[%clk 0:00:09]} 31. a4 {[%clk 0:00:35]}  Re2 {[%clk 0:00:08]} 32. a5 {[%clk 0:00:30]}  Rxe4 {[%clk 0:00:08]} 33. a6 {[%clk 0:00:30]}  bxa6 {[%clk 0:00:09]} 34. b6 {[%clk 0:00:27]}  Rb4 {[%clk 0:00:10]} 35. c6 {[%clk 0:00:26]}  Bd6 {[%clk 0:00:09]} 36. b7 {[%clk 0:00:26]}  Rc7 {[%clk 0:00:03]} 37. Rd1 {[%clk 0:00:21]}  Be7 {[%clk 0:00:04]} 38. Ba7 {[%clk 0:00:14]}  Kg7 {[%clk 0:00:01]} 39. b8=Q {[%clk 0:00:14]}  Rxb8 {[%clk 0:00:02]} 40. Bxb8 {[%clk 0:00:14]}  Rc8 {[%clk 0:00:03]} 41. Bxe5+ {[%clk 0:00:15]}  Kg6 {[%clk 0:00:02]} 42. Bxf4 {[%clk 0:00:15]}  Kf5 {[%clk 0:00:02]} 43. Bd6 {[%clk 0:00:15]}  Bf6 {[%clk 0:00:02]} 44. Rc5+ {[%clk 0:00:14]}  Ke6 {[%clk 0:00:03]} 45. Bg3 {[%clk 0:00:14]}  a5 {[%clk 0:00:04]} 46. Rd6+ {[%clk 0:00:14]}  Ke7 {[%clk 0:00:04]} 47. Rd7+ {[%clk 0:00:14]}  Ke6 {[%clk 0:00:04]} 48. Rc7 {[%clk 0:00:14]}  Bd4+ {[%clk 0:00:03]} 49. Kf1 {[%clk 0:00:14]}  Rxc7 {[%clk 0:00:04]} 50. Rc4 {[%clk 0:00:10]}  Rf7+ {[%clk 0:00:03]} 51. Ke2 {[%clk 0:00:10]}  Bb6 {[%clk 0:00:01]} 52. c7 {[%clk 0:00:10]}  Bxc7 {[%clk 0:00:01]} 53. Rxc7 {[%clk 0:00:10]}  Rxc7 {[%clk 0:00:01]} 54. Bxc7 {[%clk 0:00:11]}  a4 {[%clk 0:00:02]} 55. Ba5 {[%clk 0:00:11]}  Kd5 {[%clk 0:00:03]} 56. Bc3 {[%clk 0:00:12]}  h5 {[%clk 0:00:04]} 57. Kf3 {[%clk 0:00:12]}  Kc4 {[%clk 0:00:05]} 58. Bh8 {[%clk 0:00:12]}  Kd5 {[%clk 0:00:05]} 59. Kg3 {[%clk 0:00:13]}  Ke4 {[%clk 0:00:05]} 60. Kh4 {[%clk 0:00:13]}  Ke3 {[%clk 0:00:06]} 61. Kxh5 {[%clk 0:00:14]}  Kf2 {[%clk 0:00:07]} 62. g4 {[%clk 0:00:14]}  Kg2 {[%clk 0:00:08]} 63. g5 {[%clk 0:00:14]}  Kxh2 {[%clk 0:00:09]} 64. Bf6 {[%clk 0:00:15]}  Kg3 {[%clk 0:00:09]} 65. g6 {[%clk 0:00:15]}  Kf3 {[%clk 0:00:10]} 66. g7 {[%clk 0:00:16]}  Ke4 {[%clk 0:00:11]} 67. g8=Q {[%clk 0:00:16]}  Kd3 {[%clk 0:00:11]} 68. Qa2 {[%clk 0:00:16]}  a3 {[%clk 0:00:12]} 69. Kg4 {[%clk 0:00:17]}  Ke4 {[%clk 0:00:13]} 70. Qxa3 {[%clk 0:00:17]}  Kd5 {[%clk 0:00:13]} 71. Bh4 {[%clk 0:00:17]}  Ke6 {[%clk 0:00:14]} 72. Qa5 {[%clk 0:00:16]}  Kf7 {[%clk 0:00:14]} 73. Kf5 {[%clk 0:00:16]}  Kg7 {[%clk 0:00:15]} 74. Qa7+ {[%clk 0:00:16]}  Kh6 {[%clk 0:00:16]} 75. Bg5+ {[%clk 0:00:16]}  Kh5 {[%clk 0:00:16]} 76. Qh7# {[%clk 0:00:15]} 1-0


[Site "https://www.chess.com"]

[Event "Titled Tuesday Blitz January 10 Early 2023"]
[White "Fromm, Marius"]
[Black "Boldoo, Erdenepurev"]
[WhiteFideId "12993190"]
[BlackFideId "4901037"]
[WhiteElo "2457"]
[BlackElo "2360"]
[Result "1-0"]
[Round "01"]
[TimeControl "180+2"]
[Date "2023.01.10"]
[WhiteClock "0:00:59"]
[BlackClock "0:01:32"]

1. e4 {[%clk 0:02:59]}  d6 {[%clk 0:02:55]} 2. d4 {[%clk 0:02:59]}  g6 {[%clk 0:02:55]} 3. Nc3 {[%clk 0:03:00]}  Bg7 {[%clk 0:02:54]} 4. Be3 {[%clk 0:03:00]}  Nf6 {[%clk 0:02:54]} 5. Qd2 {[%clk 0:03:00]}  O-O {[%clk 0:02:54]} 6. O-O-O {[%clk 0:03:00]}  Nbd7 {[%clk 0:02:54]} 7. Bh6 {[%clk 0:02:59]}  c5 {[%clk 0:02:51]} 8. Bxg7 {[%clk 0:02:58]}  Kxg7 {[%clk 0:02:51]} 9. Nf3 {[%clk 0:02:57]}  cxd4 {[%clk 0:02:50]} 10. Nxd4 {[%clk 0:02:58]}  Nc5 {[%clk 0:02:50]} 11. f3 {[%clk 0:02:58]}  a6 {[%clk 0:02:48]} 12. h4 {[%clk 0:02:57]}  h5 {[%clk 0:02:47]} 13. g4 {[%clk 0:02:56]}  e5 {[%clk 0:02:47]} 14. Nf5+ {[%clk 0:02:06]}  gxf5 {[%clk 0:02:30]} 15. gxf5 {[%clk 0:02:07]}  Nh7 {[%clk 0:02:25]} 16. Rg1+ {[%clk 0:02:01]}  Kh8 {[%clk 0:02:25]} 17. Qh6 {[%clk 0:02:01]}  Qf6 {[%clk 0:02:25]} 18. Qxh5 {[%clk 0:01:53]}  Rg8 {[%clk 0:01:59]} 19. Bc4 {[%clk 0:01:47]}  Bd7 {[%clk 0:01:55]} 20. Bxf7 {[%clk 0:01:24]}  Rxg1 {[%clk 0:01:54]} 21. Rxg1 {[%clk 0:01:23]}  Rf8 {[%clk 0:01:51]} 22. Bg6 {[%clk 0:01:11]}  Qg7 {[%clk 0:01:51]} 23. Rd1 {[%clk 0:01:10]}  Rf6 {[%clk 0:01:46]} 24. Nd5 {[%clk 0:01:10]}  Rf8 {[%clk 0:01:45]} 25. f6 {[%clk 0:01:06]}  Qg8 {[%clk 0:01:32]} 26. Ne7 {[%clk 0:00:59]} 1-0


[Site "https://www.chess.com"]

[Event "Titled Tuesday Blitz January 10 Early 2023"]
[White "Fernandez Siles, Luis"]
[Black "Lewicki, Miroslaw"]
[WhiteFideId "2209420"]
[BlackFideId "1113380"]
[WhiteElo "2218"]
[BlackElo "2359"]
[Result "1-0"]
[Round "01"]
[TimeControl "180+2"]
[Date "2023.01.10"]
[WhiteClock "0:00:07"]
[BlackClock "0:00:41"]

1. d4 {[%clk 0:02:59]}  Nf6 {[%clk 0:03:00]} 2. c4 {[%clk 0:02:58]}  e6 {[%clk 0:02:59]} 3. Nf3 {[%clk 0:02:56]}  d6 {[%clk 0:03:00]} 4. Nc3 {[%clk 0:02:54]}  g6 {[%clk 0:03:00]} 5. e4 {[%clk 0:02:52]}  Bg7 {[%clk 0:03:01]} 6. Be2 {[%clk 0:02:53]}  b6 {[%clk 0:03:01]} 7. O-O {[%clk 0:02:52]}  Bb7 {[%clk 0:03:01]} 8. Qc2 {[%clk 0:02:52]}  O-O {[%clk 0:03:02]} 9. Re1 {[%clk 0:02:43]}  Nbd7 {[%clk 0:03:00]} 10. h3 {[%clk 0:02:40]}  h6 {[%clk 0:02:59]} 11. Be3 {[%clk 0:02:35]}  Kh7 {[%clk 0:02:58]} 12. Rad1 {[%clk 0:02:35]}  Qe7 {[%clk 0:02:59]} 13. Bf1 {[%clk 0:02:15]}  e5 {[%clk 0:02:57]} 14. Nd5 {[%clk 0:02:04]}  Nxd5 {[%clk 0:02:56]} 15. cxd5 {[%clk 0:02:01]}  exd4 {[%clk 0:02:56]} 16. Nxd4 {[%clk 0:01:58]}  Nf6 {[%clk 0:02:56]} 17. Bf4 {[%clk 0:01:46]}  Rfe8 {[%clk 0:02:53]} 18. Bb5 {[%clk 0:01:29]}  Rf8 {[%clk 0:02:41]} 19. Bc6 {[%clk 0:01:29]}  Bxc6 {[%clk 0:02:40]} 20. Nxc6 {[%clk 0:01:30]}  Qe8 {[%clk 0:02:39]} 21. e5 {[%clk 0:01:25]}  dxe5 {[%clk 0:02:40]} 22. Bxe5 {[%clk 0:01:22]}  Qd7 {[%clk 0:02:39]} 23. Qc3 {[%clk 0:01:15]}  Nh5 {[%clk 0:02:26]} 24. Bxg7 {[%clk 0:01:13]}  Nxg7 {[%clk 0:02:27]} 25. Re7 {[%clk 0:01:11]}  Qd6 {[%clk 0:02:24]} 26. Qe5 {[%clk 0:01:06]}  Qxe5 {[%clk 0:02:15]} 27. Nxe5 {[%clk 0:01:04]}  Rfe8 {[%clk 0:02:03]} 28. Rxe8 {[%clk 0:00:49]}  Rxe8 {[%clk 0:02:04]} 29. Nxf7 {[%clk 0:00:44]}  Re2 {[%clk 0:01:50]} 30. Rc1 {[%clk 0:00:26]}  Ne8 {[%clk 0:01:46]} 31. Kf1 {[%clk 0:00:24]}  Rxb2 {[%clk 0:01:42]} 32. Re1 {[%clk 0:00:24]}  Kg7 {[%clk 0:01:35]} 33. Re7 {[%clk 0:00:25]}  Kf8 {[%clk 0:01:30]} 34. Rd7 {[%clk 0:00:24]}  Rc2 {[%clk 0:01:23]} 35. Ne5 {[%clk 0:00:24]}  Rxa2 {[%clk 0:01:10]} 36. Nxg6+ {[%clk 0:00:24]}  Kg8 {[%clk 0:01:10]} 37. Ne7+ {[%clk 0:00:22]}  Kf7 {[%clk 0:01:09]} 38. Nc6+ {[%clk 0:00:22]}  Kf6 {[%clk 0:01:07]} 39. Re7 {[%clk 0:00:21]}  Nd6 {[%clk 0:01:04]} 40. Rxc7 {[%clk 0:00:21]}  a5 {[%clk 0:01:04]} 41. Rd7 {[%clk 0:00:20]}  Nc4 {[%clk 0:01:03]} 42. d6 {[%clk 0:00:20]}  Ke6 {[%clk 0:00:57]} 43. Rd8 {[%clk 0:00:17]}  Nxd6 {[%clk 0:00:57]} 44. Nd4+ {[%clk 0:00:16]}  Ke5 {[%clk 0:00:53]} 45. Nf3+ {[%clk 0:00:16]}  Kd5 {[%clk 0:00:52]} 46. g4 {[%clk 0:00:15]}  a4 {[%clk 0:00:53]} 47. h4 {[%clk 0:00:15]}  a3 {[%clk 0:00:53]} 48. g5 {[%clk 0:00:15]}  Ra1+ {[%clk 0:00:49]} 49. Kg2 {[%clk 0:00:15]}  a2 {[%clk 0:00:50]} 50. g6 {[%clk 0:00:13]}  Rg1+ {[%clk 0:00:48]} 51. Nxg1 {[%clk 0:00:12]}  a1=Q {[%clk 0:00:49]} 52. Nf3 {[%clk 0:00:10]}  Qf6 {[%clk 0:00:49]} 53. Rg8 {[%clk 0:00:08]}  Nf5 {[%clk 0:00:47]} 54. h5 {[%clk 0:00:06]}  b5 {[%clk 0:00:44]} 55. Rb8 {[%clk 0:00:05]}  Kc4 {[%clk 0:00:41]} 56. Rc8+ {[%clk 0:00:04]}  Kb3 {[%clk 0:00:40]} 57. Rc5 {[%clk 0:00:05]}  b4 {[%clk 0:00:40]} 58. Rxf5 {[%clk 0:00:04]}  Qxf5 {[%clk 0:00:40]} 59. Nd4+ {[%clk 0:00:04]}  Ka3 {[%clk 0:00:38]} 60. Nxf5 {[%clk 0:00:05]}  b3 {[%clk 0:00:39]} 61. g7 {[%clk 0:00:05]}  b2 {[%clk 0:00:40]} 62. g8=Q {[%clk 0:00:06]}  b1=Q {[%clk 0:00:41]} 63. Qa8+ {[%clk 0:00:06]}  Kb2 {[%clk 0:00:41]} 64. Qb8+ {[%clk 0:00:06]}  Kc1 {[%clk 0:00:41]} 65. Qxb1+ {[%clk 0:00:07]} 1-0


[Site "https://www.chess.com"]

[Event "Titled Tuesday Blitz January 10 Early 2023"]
[White "Tica, Sven"]
[Black "Shtompel, Yuriy"]
[WhiteFideId "14526948"]
[BlackFideId "14168278"]
[WhiteElo "2431"]
[BlackElo "1938"]
[Result "1-0"]
[Round "01"]
[TimeControl "180+2"]
[Date "2023.01.10"]
[WhiteClock "0:02:01"]
[BlackClock "0:00:34"]

1. e4 {[%clk 0:03:00]}  c5 {[%clk 0:02:54]} 2. Nc3 {[%clk 0:03:01]}  d6 {[%clk 0:02:53]} 3. f4 {[%clk 0:03:01]}  Nc6 {[%clk 0:02:52]} 4. Nf3 {[%clk 0:03:01]}  g6 {[%clk 0:02:50]} 5. Bc4 {[%clk 0:02:58]}  Bg7 {[%clk 0:02:49]} 6. e5 {[%clk 0:02:50]}  dxe5 {[%clk 0:02:41]} 7. O-O {[%clk 0:02:50]}  Nh6 {[%clk 0:02:32]} 8. fxe5 {[%clk 0:02:46]}  O-O {[%clk 0:02:17]} 9. d3 {[%clk 0:02:45]}  Bg4 {[%clk 0:02:12]} 10. e6 {[%clk 0:02:38]}  Bxe6 {[%clk 0:02:05]} 11. Bxe6 {[%clk 0:02:38]}  fxe6 {[%clk 0:02:06]} 12. Bxh6 {[%clk 0:02:31]}  Bxh6 {[%clk 0:02:02]} 13. Qe1 {[%clk 0:02:32]}  Nd4 {[%clk 0:01:55]} 14. Nxd4 {[%clk 0:02:26]}  Qxd4+ {[%clk 0:01:52]} 15. Kh1 {[%clk 0:02:25]}  Rxf1+ {[%clk 0:01:51]} 16. Qxf1 {[%clk 0:02:26]}  Rf8 {[%clk 0:01:51]} 17. Qe2 {[%clk 0:02:27]}  Qe3 {[%clk 0:01:47]} 18. Qxe3 {[%clk 0:02:23]}  Bxe3 {[%clk 0:01:48]} 19. Ne4 {[%clk 0:02:22]}  b6 {[%clk 0:01:28]} 20. g3 {[%clk 0:02:22]}  h6 {[%clk 0:01:27]} 21. Kg2 {[%clk 0:02:22]}  Kg7 {[%clk 0:01:27]} 22. Re1 {[%clk 0:02:23]}  Bd4 {[%clk 0:01:27]} 23. b3 {[%clk 0:02:22]}  g5 {[%clk 0:01:23]} 24. a4 {[%clk 0:02:20]}  Kg6 {[%clk 0:01:21]} 25. Re2 {[%clk 0:02:21]}  Bg7 {[%clk 0:01:16]} 26. Nd2 {[%clk 0:02:18]}  Kf6 {[%clk 0:01:12]} 27. Nc4 {[%clk 0:02:16]}  Kf5 {[%clk 0:01:11]} 28. h3 {[%clk 0:02:13]}  Rd8 {[%clk 0:01:09]} 29. g4+ {[%clk 0:02:13]}  Kg6 {[%clk 0:01:09]} 30. Rxe6+ {[%clk 0:02:12]}  Kf7 {[%clk 0:01:09]} 31. Re4 {[%clk 0:02:10]}  Rd4 {[%clk 0:01:08]} 32. Kf3 {[%clk 0:02:11]}  Rd5 {[%clk 0:01:06]} 33. Ne3 {[%clk 0:02:09]}  Rd4 {[%clk 0:01:02]} 34. Nf5 {[%clk 0:02:08]}  Rxe4 {[%clk 0:01:02]} 35. Kxe4 {[%clk 0:02:09]}  e6 {[%clk 0:00:50]} 36. Nd6+ {[%clk 0:02:04]}  Ke7 {[%clk 0:00:39]} 37. Nc8+ {[%clk 0:02:05]}  Kd7 {[%clk 0:00:39]} 38. Nxa7 {[%clk 0:02:04]}  Kd6 {[%clk 0:00:38]} 39. Nb5+ {[%clk 0:02:01]}  Kc6 {[%clk 0:00:39]} 40. c3 {[%clk 0:01:58]}  Bf6 {[%clk 0:00:38]} 41. d4 {[%clk 0:01:58]}  Bg7 {[%clk 0:00:37]} 42. c4 {[%clk 0:01:56]}  cxd4 {[%clk 0:00:35]} 43. Nxd4+ {[%clk 0:01:57]}  Kd6 {[%clk 0:00:32]} 44. b4 {[%clk 0:01:58]}  Bf8 {[%clk 0:00:31]} 45. c5+ {[%clk 0:01:57]}  bxc5 {[%clk 0:00:31]} 46. bxc5+ {[%clk 0:01:58]}  Kd7 {[%clk 0:00:31]} 47. c6+ {[%clk 0:01:58]}  Kd6 {[%clk 0:00:31]} 48. c7 {[%clk 0:01:59]}  Kxc7 {[%clk 0:00:31]} 49. Nxe6+ {[%clk 0:01:59]}  Kb6 {[%clk 0:00:32]} 50. Nxf8 {[%clk 0:02:00]}  Ka5 {[%clk 0:00:33]} 51. Kf5 {[%clk 0:02:00]}  Kxa4 {[%clk 0:00:34]} 52. Kg6 {[%clk 0:02:01]} 1-0


[Site "https://www.chess.com"]

[Event "Titled Tuesday Blitz January 10 Early 2023"]
[White "Vasques, Antonio Pedro Freixial"]
[Black "Atakhan, Abtin"]
[WhiteFideId "1908332"]
[BlackFideId "22502203"]
[WhiteElo "2214"]
[BlackElo "2422"]
[Result "0-1"]
[Round "01"]
[TimeControl "180+2"]
[Date "2023.01.10"]
[WhiteClock "0:02:12"]
[BlackClock "0:01:27"]

1. e4 {[%clk 0:02:55]}  c5 {[%clk 0:02:58]} 2. Nf3 {[%clk 0:02:56]}  d6 {[%clk 0:02:59]} 3. d4 {[%clk 0:02:56]}  cxd4 {[%clk 0:03:00]} 4. Nxd4 {[%clk 0:02:56]}  Nf6 {[%clk 0:03:00]} 5. Nc3 {[%clk 0:02:57]}  a6 {[%clk 0:03:01]} 6. Be3 {[%clk 0:02:57]}  e5 {[%clk 0:03:01]} 7. Nb3 {[%clk 0:02:57]}  Be7 {[%clk 0:03:00]} 8. f3 {[%clk 0:02:57]}  Be6 {[%clk 0:02:59]} 9. Qd2 {[%clk 0:02:58]}  h5 {[%clk 0:03:00]} 10. O-O-O {[%clk 0:02:58]}  Nbd7 {[%clk 0:03:00]} 11. Kb1 {[%clk 0:02:59]}  Rc8 {[%clk 0:02:52]} 12. g3 {[%clk 0:02:55]}  b5 {[%clk 0:02:52]} 13. f4 {[%clk 0:02:54]}  b4 {[%clk 0:02:41]} 14. Nd5 {[%clk 0:02:54]}  Nxd5 {[%clk 0:02:37]} 15. exd5 {[%clk 0:02:55]}  Bf5 {[%clk 0:02:38]} 16. Bd3 {[%clk 0:02:54]}  Bxd3 {[%clk 0:02:38]} 17. Qxd3 {[%clk 0:02:55]}  a5 {[%clk 0:02:36]} 18. Rhf1 {[%clk 0:02:41]}  O-O {[%clk 0:02:34]} 19. Qe2 {[%clk 0:02:39]}  a4 {[%clk 0:02:28]} 20. Nc1 {[%clk 0:02:38]}  exf4 {[%clk 0:02:22]} 21. Bxf4 {[%clk 0:02:36]}  g6 {[%clk 0:02:18]} 22. Rde1 {[%clk 0:02:30]}  Re8 {[%clk 0:02:10]} 23. g4 {[%clk 0:02:30]}  Nf6 {[%clk 0:02:02]} 24. gxh5 {[%clk 0:02:25]}  Nxh5 {[%clk 0:02:02]} 25. Bh6 {[%clk 0:02:21]}  Bh4 {[%clk 0:01:53]} 26. Qxe8+ {[%clk 0:02:19]}  Qxe8 {[%clk 0:01:54]} 27. Rxe8+ {[%clk 0:02:19]}  Rxe8 {[%clk 0:01:54]} 28. Nd3 {[%clk 0:02:17]}  Re4 {[%clk 0:01:54]} 29. Bd2 {[%clk 0:02:15]}  b3 {[%clk 0:01:51]} 30. axb3 {[%clk 0:02:16]}  axb3 {[%clk 0:01:52]} 31. cxb3 {[%clk 0:02:17]}  Rd4 {[%clk 0:01:50]} 32. Kc2 {[%clk 0:02:17]}  Rxd5 {[%clk 0:01:50]} 33. b4 {[%clk 0:02:17]}  Ng7 {[%clk 0:01:46]} 34. Bc3 {[%clk 0:02:13]}  Nf5 {[%clk 0:01:45]} 35. Ra1 {[%clk 0:02:14]}  Nd4+ {[%clk 0:01:28]} 36. Bxd4 {[%clk 0:02:13]}  Rxd4 {[%clk 0:01:29]} 37. Kc3 {[%clk 0:02:14]}  Bf6 {[%clk 0:01:29]} 38. b5 {[%clk 0:02:12]}  Ra4+ {[%clk 0:01:28]} 39. Kb3 {[%clk 0:02:12]}  Rxa1 {[%clk 0:01:28]} 40. b6 {[%clk 0:02:12]}  Ra6 {[%clk 0:01:27]} 0-1


[Site "https://www.chess.com"]

[Event "Titled Tuesday Blitz January 10 Early 2023"]
[White "Tillyaev, Ulugbek"]
[Black "Hoffmann, Asa"]
[WhiteFideId "14202441"]
[BlackFideId "2001470"]
[WhiteElo "2287"]
[BlackElo "2185"]
[Result "1-0"]
[Round "01"]
[TimeControl "180+2"]
[Date "2023.01.10"]
[WhiteClock "0:01:41"]
[BlackClock "0:01:11"]

1. e4 {[%clk 0:02:59]}  d6 {[%clk 0:02:57]} 2. d4 {[%clk 0:02:59]}  Nf6 {[%clk 0:02:54]} 3. Nc3 {[%clk 0:02:59]}  c6 {[%clk 0:02:54]} 4. f4 {[%clk 0:02:58]}  Qa5 {[%clk 0:02:53]} 5. Bd3 {[%clk 0:02:50]}  e5 {[%clk 0:02:52]} 6. dxe5 {[%clk 0:02:42]}  dxe5 {[%clk 0:02:51]} 7. Nf3 {[%clk 0:02:40]}  Nbd7 {[%clk 0:02:41]} 8. O-O {[%clk 0:02:37]}  Bd6 {[%clk 0:02:38]} 9. f5 {[%clk 0:02:27]}  Qc7 {[%clk 0:02:14]} 10. Kh1 {[%clk 0:02:21]}  b5 {[%clk 0:02:06]} 11. Qe1 {[%clk 0:02:15]}  a6 {[%clk 0:02:03]} 12. a4 {[%clk 0:02:03]}  b4 {[%clk 0:02:02]} 13. Nd1 {[%clk 0:02:00]}  Nc5 {[%clk 0:01:58]} 14. Bg5 {[%clk 0:01:57]}  Nfd7 {[%clk 0:01:55]} 15. Ne3 {[%clk 0:01:54]}  f6 {[%clk 0:01:49]} 16. Bh4 {[%clk 0:01:55]}  b3 {[%clk 0:01:47]} 17. Nc4 {[%clk 0:01:53]}  Nxd3 {[%clk 0:01:43]} 18. cxd3 {[%clk 0:01:54]}  Bc5 {[%clk 0:01:41]} 19. Qg3 {[%clk 0:01:49]}  O-O {[%clk 0:01:37]} 20. d4 {[%clk 0:01:49]}  Bd6 {[%clk 0:01:32]} 21. Rfd1 {[%clk 0:01:43]}  Re8 {[%clk 0:01:17]} 22. Nxd6 {[%clk 0:01:41]}  Qxd6 {[%clk 0:01:16]} 23. dxe5 {[%clk 0:01:42]}  Qb4 {[%clk 0:01:11]} 24. exf6 {[%clk 0:01:41]} 1-0


[Site "https://www.chess.com"]

[Event "Titled Tuesday Blitz January 10 Early 2023"]
[White "Matveeva, Olga"]
[Black "McCoy, Owen"]
[WhiteFideId "24107018"]
[BlackFideId "30924502"]
[WhiteElo "2128"]
[BlackElo "2085"]
[Result "0-1"]
[Round "01"]
[TimeControl "180+2"]
[Date "2023.01.10"]
[WhiteClock "0:00:01"]
[BlackClock "0:00:03"]

1. d4 {[%clk 0:02:59]}  Nf6 {[%clk 0:02:59]} 2. c4 {[%clk 0:02:58]}  e6 {[%clk 0:02:59]} 3. g3 {[%clk 0:02:58]}  d5 {[%clk 0:02:58]} 4. Nf3 {[%clk 0:02:58]}  dxc4 {[%clk 0:02:52]} 5. Bg2 {[%clk 0:02:57]}  Nc6 {[%clk 0:02:51]} 6. O-O {[%clk 0:02:55]}  a6 {[%clk 0:02:50]} 7. e3 {[%clk 0:02:52]}  Rb8 {[%clk 0:02:49]} 8. Nfd2 {[%clk 0:02:52]}  e5 {[%clk 0:02:40]} 9. Bxc6+ {[%clk 0:02:49]}  bxc6 {[%clk 0:02:41]} 10. dxe5 {[%clk 0:02:49]}  Ng4 {[%clk 0:02:28]} 11. Nxc4 {[%clk 0:02:48]}  Qg5 {[%clk 0:01:55]} 12. Nbd2 {[%clk 0:02:33]}  Be6 {[%clk 0:01:47]} 13. Qc2 {[%clk 0:02:25]}  h5 {[%clk 0:01:35]} 14. Nf3 {[%clk 0:02:00]}  Qh6 {[%clk 0:01:27]} 15. h4 {[%clk 0:01:56]}  Be7 {[%clk 0:01:22]} 16. e4 {[%clk 0:01:47]}  Qg6 {[%clk 0:01:21]} 17. Ng5 {[%clk 0:01:34]}  Bxc4 {[%clk 0:01:08]} 18. Qxc4 {[%clk 0:01:31]}  Nxe5 {[%clk 0:01:09]} 19. Qc3 {[%clk 0:01:19]}  f6 {[%clk 0:01:01]} 20. Bf4 {[%clk 0:00:53]}  O-O {[%clk 0:00:51]} 21. Nf3 {[%clk 0:00:38]}  Nxf3+ {[%clk 0:00:44]} 22. Qxf3 {[%clk 0:00:39]}  Bd6 {[%clk 0:00:44]} 23. b3 {[%clk 0:00:36]}  Rfe8 {[%clk 0:00:38]} 24. Rfe1 {[%clk 0:00:35]}  Rb4 {[%clk 0:00:36]} 25. Rac1 {[%clk 0:00:26]}  Rbxe4 {[%clk 0:00:28]} 26. Rxe4 {[%clk 0:00:25]}  Rxe4 {[%clk 0:00:29]} 27. Bxd6 {[%clk 0:00:22]}  cxd6 {[%clk 0:00:30]} 28. Rxc6 {[%clk 0:00:19]}  Rxh4 {[%clk 0:00:22]} 29. Rc8+ {[%clk 0:00:18]}  Kh7 {[%clk 0:00:22]} 30. Kg2 {[%clk 0:00:18]}  Rd4 {[%clk 0:00:17]} 31. Rc6 {[%clk 0:00:17]}  h4 {[%clk 0:00:15]} 32. Rc4 {[%clk 0:00:16]}  Rxc4 {[%clk 0:00:14]} 33. bxc4 {[%clk 0:00:16]}  hxg3 {[%clk 0:00:15]} 34. fxg3 {[%clk 0:00:16]}  Qc2+ {[%clk 0:00:15]} 35. Kh3 {[%clk 0:00:16]}  Qg6 {[%clk 0:00:09]} 36. Qd5 {[%clk 0:00:15]}  f5 {[%clk 0:00:07]} 37. c5 {[%clk 0:00:13]}  dxc5 {[%clk 0:00:08]} 38. Qxc5 {[%clk 0:00:13]}  Qh5+ {[%clk 0:00:08]} 39. Kg2 {[%clk 0:00:13]}  Qe2+ {[%clk 0:00:09]} 40. Kh3 {[%clk 0:00:13]}  Qg4+ {[%clk 0:00:09]} 41. Kg2 {[%clk 0:00:13]}  Qe4+ {[%clk 0:00:10]} 42. Kh3 {[%clk 0:00:14]}  Qe6 {[%clk 0:00:10]} 43. Kg2 {[%clk 0:00:13]}  Qxa2+ {[%clk 0:00:10]} 44. Kh3 {[%clk 0:00:12]}  Qe6 {[%clk 0:00:11]} 45. Kg2 {[%clk 0:00:13]}  Kg6 {[%clk 0:00:11]} 46. Kf3 {[%clk 0:00:12]}  Qe4+ {[%clk 0:00:07]} 47. Kf2 {[%clk 0:00:12]}  Qe6 {[%clk 0:00:06]} 48. Kf3 {[%clk 0:00:12]}  Kh6 {[%clk 0:00:05]} 49. Kf2 {[%clk 0:00:12]}  Qa2+ {[%clk 0:00:03]} 50. Kf3 {[%clk 0:00:12]}  a5 {[%clk 0:00:04]} 51. Qxf5 {[%clk 0:00:10]}  Qb3+ {[%clk 0:00:03]} 52. Kg2 {[%clk 0:00:10]}  Qb2+ {[%clk 0:00:03]} 53. Kh3 {[%clk 0:00:09]}  Qb4 {[%clk 0:00:04]} 54. Qe6+ {[%clk 0:00:08]}  Kh7 {[%clk 0:00:05]} 55. Qf5+ {[%clk 0:00:08]}  Kg8 {[%clk 0:00:05]} 56. Qe6+ {[%clk 0:00:08]}  Kf8 {[%clk 0:00:05]} 57. Qc8+ {[%clk 0:00:09]}  Kf7 {[%clk 0:00:05]} 58. Qd7+ {[%clk 0:00:09]}  Kf8 {[%clk 0:00:05]} 59. Qc8+ {[%clk 0:00:09]}  Ke7 {[%clk 0:00:06]} 60. Qc7+ {[%clk 0:00:08]}  Kf6 {[%clk 0:00:06]} 61. Qc6+ {[%clk 0:00:07]}  Kg5 {[%clk 0:00:06]} 62. Qd5+ {[%clk 0:00:07]}  Kh6 {[%clk 0:00:06]} 63. Qe6+ {[%clk 0:00:07]}  g6 {[%clk 0:00:07]} 64. Qe3+ {[%clk 0:00:06]}  Kh7 {[%clk 0:00:06]} 65. Qa7+ {[%clk 0:00:04]}  Kg8 {[%clk 0:00:05]} 66. Qa8+ {[%clk 0:00:04]}  Kf7 {[%clk 0:00:06]} 67. Qd5+ {[%clk 0:00:04]}  Kg7 {[%clk 0:00:04]} 68. Qe5+ {[%clk 0:00:03]}  Kh7 {[%clk 0:00:03]} 69. Qc7+ {[%clk 0:00:03]}  Kh6 {[%clk 0:00:03]} 70. Qd8 {[%clk 0:00:02]}  a4 {[%clk 0:00:02]} 71. Qh4+ {[%clk 0:00:02]}  Qxh4+ {[%clk 0:00:02]} 72. Kxh4 {[%clk 0:00:01]}  a3 {[%clk 0:00:03]} 0-1


[Site "https://www.chess.com"]